bitfinex/quotes_SOLUSD_20250131
["timestamp","ask_amount","ask_price","bid_price","bid_amount"]
[1738314201474,0.063,235.43,235.36,8.35586572]
[1738314201652,1.5754,235.42,235.33,227.65586572]
[1738314201850,1.5754,235.42,235.33,90.65586572]
[1738314202048,1.5754,235.42,235.33,82.3]
[1738314202683,0.4247,235.41,235.33,82.3]
[1738314202854,0.4247,235.41,235.31,12.60536572]
[1738314202855,0.4247,235.41,235.31,8.35586572]
[1738314203055,0.4247,235.41,235.26,13.53733853]
[1738314203056,13.41184853,235.4,235.25,82.3]
[1738314203263,13.41184853,235.4,235.27,8.35586572]
[1738314204455,13.41184853,235.4,235.28,8.35586572]
[1738314204689,13.41184853,235.38,235.28,13.00723586]
[1738314204862,13.41184853,235.38,235.27,20.0]
[1738314204863,13.41184853,235.38,235.29,13.00723586]
[1738314205781,13.41184853,235.38,235.3,13.00723586]
[1738314206094,1.5754,235.42,235.34,13.00723586]
[1738314206285,1.5754,235.42,235.36,13.00723586]
[1738314207169,1.5754,235.42,235.35,13.00723586]
[1738314207369,2.0001,235.42,235.35,13.00723586]
[1738314207575,2.0631,235.42,235.35,13.00723586]
[1738314207785,1.9631,235.42,235.35,13.00723586]
[1738314211302,1.9631,235.42,235.36,13.00723586]
[1738314211485,1.9631,235.42,235.39,13.00723586]
[1738314211486,0.063,235.42,235.39,13.00723586]
[1738314213800,0.063,235.42,235.38,13.00723586]
[1738314214095,0.063,235.42,235.34,17.25623586]
[1738314214266,0.4877,235.42,235.34,13.00723586]
[1738314215097,0.4877,235.42,235.35,13.00723586]
[1738314215599,0.4877,235.42,235.33,232.30723586]
[1738314215769,0.4877,235.42,235.33,219.3]
[1738314216169,0.4877,235.42,235.31,13.00723586]
[1738314217899,0.4877,235.42,235.32,33.00723586]
[1738314220914,0.4877,235.42,235.33,13.00723586]
[1738314221607,0.4877,235.42,235.34,13.00723586]
[1738314221979,0.063,235.42,235.36,13.00723586]
[1738314222307,0.4877,235.42,235.34,13.00723586]
[1738314226604,0.4877,235.42,235.33,8.32090771]
[1738314228290,0.4877,235.42,235.35,8.32090771]
[1738314228600,0.063,235.42,235.35,8.32090771]
[1738314228799,0.063,235.42,235.37,8.32090771]
[1738314229505,0.063,235.42,235.41,8.32090771]
[1738314230374,0.063,235.42,235.41,8.95796642]
[1738314232195,0.063,235.42,235.41,8.32090771]
[1738314232597,0.063,235.42,235.41,32.9907393]
[1738314233901,0.063,235.42,235.41,12.9907393]
[1738314235582,0.063,235.42,235.4,12.9907393]
[1738314235889,0.063,235.42,235.39,12.9907393]
[1738314236087,0.063,235.42,235.38,149.9907393]
[1738314236700,0.063,235.42,235.37,95.2907393]
[1738314237204,0.063,235.42,235.37,82.3]
[1738314237784,0.4877,235.42,235.33,0.03]
[1738314239299,0.4877,235.42,235.33,13.0207393]
[1738314240005,0.4877,235.42,235.34,12.9907393]
[1738314240507,0.063,235.42,235.37,12.9907393]
[1738314240802,0.063,235.42,235.38,12.9907393]
[1738314240985,0.063,235.42,235.39,12.9907393]
[1738314241307,0.063,235.42,235.4,12.9907393]
[1738314242112,0.063,235.42,235.41,12.9907393]
[1738314242288,0.063,235.42,235.41,13.6277489]
[1738314243210,0.063,235.42,235.41,12.9907393]
[1738314244610,0.063,235.42,235.41,13.6276963]
[1738314245809,0.063,235.42,235.41,95.9276963]
[1738314246017,0.063,235.42,235.41,95.2907393]
[1738314254626,0.063,235.42,235.41,90.6143003]
[1738314255991,0.063,235.42,235.41,227.6143003]
[1738314256204,0.063,235.42,235.41,227.6443003]
[1738314257101,0.063,235.42,235.41,90.6443003]
[1738314257619,0.063,235.42,235.41,104.18163883]
[1738314258026,0.063,235.42,235.41,105.78063883]
[1738314259529,0.063,235.51,235.46,9.6907703]
[1738314259705,0.063,235.51,235.46,245.81927287]
[1738314259905,0.063,235.51,235.46,245.18261883]
[1738314261424,0.063,235.51,235.46,253.03311883]
[1738314261930,0.063,235.51,235.46,257.28011883]
[1738314263325,0.063,235.51,235.46,256.28011883]
[1738314263519,0.063,235.51,235.46,239.7118003]
[1738314263721,0.063,235.51,235.46,242.4918003]
[1738314263920,0.063,235.51,235.46,238.2448003]
[1738314264234,0.063,235.51,235.46,230.3943003]
[1738314265231,0.063,235.51,235.46,93.3943003]
[1738314265435,0.4876,235.51,235.46,85.08]
[1738314267023,0.4876,235.51,235.46,82.3]
[1738314267332,0.063,235.51,235.46,82.3]
[1738314267844,0.063,235.51,235.46,95.28980193]
[1738314271343,0.063,235.56,235.46,95.28980193]
[1738314271728,0.063,235.56,235.46,99.53670193]
[1738314272139,0.063,235.56,235.5,12.98980193]
[1738314276328,0.4875,235.56,235.47,82.3]
[1738314277047,0.4875,235.56,235.48,12.98980193]
[1738314279051,0.4875,235.56,235.47,82.3]
[1738314281326,0.4875,235.56,235.48,12.98980193]
[1738314283357,0.4875,235.56,235.48,17.23640193]
[1738314283540,0.063,235.56,235.5,12.98980193]
[1738314284242,0.4875,235.56,235.48,17.23640193]
[1738314286045,0.063,235.56,235.5,12.98980193]
[1738314288566,0.063,235.56,235.5,8.30900491]
[1738314289770,0.063,235.56,235.52,8.30900491]
[1738314290061,0.063,235.56,235.54,8.30900491]
[1738314290633,0.063,235.56,235.55,8.30900491]
[1738314293280,0.063,235.56,235.54,8.30900491]
[1738314293481,0.063,235.56,235.52,90.60900491]
[1738314293857,0.063,235.56,235.53,8.30900491]
[1738314296180,0.063,235.56,235.55,8.30900491]
[1738314299491,0.063,235.56,235.55,13.19091091]
[1738314299877,0.063,235.56,235.55,142.13877908]
[1738314300191,0.063,235.6,235.55,142.13877908]
[1738314300192,0.063,235.6,235.59,20.0]
[1738314300394,0.063,235.6,235.59,127.41723793]
[1738314300568,0.063,235.6,235.59,126.78085344]
[1738314300769,0.063,235.6,235.59,263.78085344]
[1738314301099,0.063,235.6,235.59,263.90634344]
[1738314301598,0.063,235.6,235.59,268.15094344]
[1738314302094,0.063,235.6,235.59,268.02545344]
[1738314302280,0.063,235.6,235.59,254.61360491]
[1738314302598,0.063,235.6,235.59,2.76]
[1738314304486,0.4874,235.6,235.54,8.30900491]
[1738314304781,0.4874,235.6,235.53,32.98037804]
[1738314305190,0.4874,235.6,235.53,12.98037804]
[1738314305966,0.4874,235.6,235.53,32.98037804]
[1738314307603,0.063,235.6,235.57,12.98037804]
[1738314309078,0.063,235.6,235.59,12.98037804]
[1738314309688,0.063,235.6,235.59,163.39222657]
[1738314309998,0.063,235.6,235.59,163.64320657]
[1738314310506,0.063,235.6,235.59,245.94320657]
[1738314311209,0.063,235.6,235.59,250.06231657]
[1738314311597,0.063,235.6,235.59,249.93682657]
[1738314314107,0.063,235.6,235.59,250.18780657]
[1738314314314,0.063,235.6,235.59,251.73470657]
[1738314315708,0.063,235.66,235.63,20.0]
[1738314315883,0.063,235.66,235.65,26.51771657]
[1738314316085,0.063,235.66,235.65,163.51771657]
[1738314316315,0.063,235.66,235.65,167.63572657]
[1738314317204,0.063,235.8,235.69,20.0]
[1738314317412,0.063,235.8,235.75,12.98037804]
[1738314317981,0.063,235.8,235.77,12.98037804]
[1738314318184,0.063,235.8,235.79,12.98037804]
[1738314319572,0.063,235.8,235.79,27.0281049]
[1738314319777,0.063,235.8,235.79,40.00848294]
[1738314320206,0.063,235.8,235.79,27.0281049]
[1738314323185,0.063,235.8,235.79,12.98037804]
[1738314324002,0.487,235.8,235.77,2.8]
[1738314324190,0.487,235.8,235.74,12.98037804]
[1738314324808,0.487,235.8,235.71,12.98037804]
[1738314325008,0.487,235.8,235.69,12.98037804]
[1738314325208,1.5472,235.8,235.69,12.98037804]
[1738314325511,1.5472,235.8,235.68,15.78037804]
[1738314328406,1.5472,235.8,235.7,12.98037804]
[1738314328612,0.487,235.8,235.73,12.98037804]
[1738314328808,0.487,235.8,235.72,12.98037804]
[1738314329007,0.487,235.8,235.71,12.98037804]
[1738314329707,0.487,235.8,235.7,12.98037804]
[1738314331125,0.487,235.8,235.71,12.98037804]
[1738314331806,0.487,235.8,235.72,12.98037804]
[1738314334190,0.487,235.8,235.74,12.98037804]
[1738314335614,0.487,235.8,235.71,12.98037804]
[1738314344036,0.487,235.8,235.73,12.98037804]
[1738314346535,0.487,235.8,235.72,8.29394183]
[1738314350035,0.487,235.8,235.74,8.29394183]
[1738314351717,0.487,235.8,235.76,8.29394183]
[1738314352231,0.487,235.8,235.72,4.2423]
[1738314352232,0.063,235.8,235.78,8.29394183]
[1738314353815,0.063,235.8,235.79,8.29394183]
[1738314354225,0.487,235.8,235.75,8.29394183]
[1738314356130,0.063,235.8,235.77,8.29394183]
[1738314363169,0.063,235.8,235.75,8.29394183]
[1738314363337,0.487,235.8,235.73,8.29394183]
[1738314364446,0.487,235.8,235.72,90.59394183]
[1738314364743,0.487,235.8,235.72,8.29394183]
[1738314367978,0.487,235.8,235.71,8.29394183]
[1738314368539,13.41184853,235.79,235.71,8.29394183]
[1738314368747,13.41184853,235.79,235.68,8.29394183]
[1738314369045,13.41184853,235.79,235.66,86.6063]
[1738314369251,13.41184853,235.79,235.66,0.063]
[1738314369451,13.41184853,235.77,235.66,0.063]
[1738314369650,0.4241,235.76,235.66,0.063]
[1738314369852,0.4241,235.76,235.66,8.35694183]
[1738314370049,13.41184853,235.75,235.66,8.35694183]
[1738314372655,13.41184853,235.75,235.66,0.063]
[1738314373372,7.8209,235.7,235.66,0.063]
[1738314373548,13.41184853,235.69,235.66,0.063]
[1738314374152,13.41184853,235.67,235.66,0.063]
[1738314377352,13.41184853,235.69,235.66,0.063]
[1738314377682,13.41184853,235.74,235.66,13.0405961]
[1738314378056,13.41184853,235.74,235.66,0.063]
[1738314379873,13.41184853,235.75,235.66,0.063]
[1738314380061,33.41184853,235.72,235.66,0.063]
[1738314380385,34.41184853,235.72,235.66,0.063]
[1738314382483,1.4848,235.71,235.66,0.063]
[1738314384992,13.41184853,235.68,235.66,0.063]
[1738314385163,15.02034853,235.67,235.66,0.063]
[1738314387159,15.44464853,235.67,235.66,0.063]
[1738314387359,16.44464853,235.67,235.66,0.063]
[1738314391101,20.0,235.63,235.56,0.063]
[1738314391307,13.41184853,235.62,235.56,0.063]
[1738314393402,13.41184853,235.6,235.56,0.063]
[1738314395294,0.4244,235.59,235.56,0.063]
[1738314398376,15.91704853,235.58,235.56,0.063]
[1738314398581,33.41184853,235.55,235.5,0.03]
[1738314399986,13.41184853,235.53,235.5,0.03]
[1738314401079,33.41184853,235.51,235.5,0.03]
[1738314409512,39.52962105,235.51,235.5,0.03]
[1738314410109,14.89794853,235.5,235.42,0.063]
[1738314410313,13.41184853,235.46,235.42,0.063]
[1738314410531,13.41184853,235.44,235.42,0.063]
[1738314411625,0.4247,235.43,235.42,0.063]
[1738314412430,13.83654853,235.43,235.42,0.063]
[1738314414721,19.95432105,235.43,235.42,0.063]
[1738314415109,20.95432105,235.43,235.42,0.063]
[1738314415326,13.41184853,235.42,235.41,0.03]
[1738314415627,19.52962105,235.42,235.41,0.03]
[1738314416734,19.52962105,235.42,235.33,0.03]
[1738314416915,13.41184853,235.38,235.33,0.03]
[1738314418533,13.41184853,235.36,235.33,0.03]
[1738314420531,33.83664853,235.38,235.33,0.03]
[1738314421425,20.4248,235.38,235.33,0.03]
[1738314422409,20.0,235.38,235.33,0.03]
[1738314422924,20.4248,235.38,235.33,0.03]
[1738314423124,0.4248,235.38,235.33,0.03]
[1738314423526,6.11777252,235.41,235.33,0.03]
[1738314423728,0.4248,235.4,235.33,0.03]
[1738314426127,13.41184853,235.5,235.36,8.32229163]
[1738314426312,13.41184853,235.51,235.37,8.32229163]
[1738314426511,13.41184853,235.51,235.38,6.3009]
[1738314427018,20.0,235.48,235.39,1.6057]
[1738314427417,0.4246,235.49,235.39,1.6057]
[1738314427716,0.4246,235.49,235.4,8.32229163]
[1738314427923,20.0,235.48,235.39,14.17609163]
[1738314428731,20.4246,235.48,235.39,14.17609163]
[1738314429646,81.0246,235.52,235.4,8.95931974]
[1738314429959,81.0246,235.52,235.43,8.32229163]
[1738314430115,0.4545,235.56,235.46,1.5381]
[1738314430518,0.4545,235.56,235.47,6.4447]
[1738314430740,20.0,235.55,235.47,6.4447]
[1738314431141,20.4245,235.55,235.47,6.4447]
[1738314437932,13.41184853,235.54,235.47,6.4447]
[1738314439345,0.4245,235.53,235.47,6.4447]
[1738314441456,0.4245,235.55,235.47,6.4447]
[1738314442726,0.03,235.56,235.47,6.4447]
[1738314442933,0.03,235.55,235.47,6.4447]
[1738314444943,13.41184853,235.54,235.47,6.4447]
[1738314446350,0.4545,235.55,235.47,6.4447]
[1738314446558,0.4545,235.55,235.47,19.4348373]
[1738314447261,0.03,235.55,235.47,19.4348373]
[1738314447939,0.03,235.55,235.48,0.63681787]
[1738314449546,0.03,235.55,235.47,6.4447]
[1738314450958,0.03,235.55,235.47,7.08157658]
[1738314451857,0.03,235.55,235.47,6.4447]
[1738314456561,0.03,235.55,235.47,14.75496754]
[1738314457656,0.03,235.55,235.47,6.4447]
[1738314459055,13.41184853,235.54,235.47,6.4447]
[1738314460464,0.4245,235.53,235.47,6.4447]
[1738314462765,81.0245,235.53,235.47,6.4447]
[1738314463544,0.4246,235.51,235.47,6.4447]
[1738314470175,13.83634853,235.52,235.47,6.4447]
[1738314479190,13.86634853,235.52,235.47,6.4447]
[1738314479594,14.92774853,235.52,235.47,6.4447]
[1738314479769,21.62451931,235.52,235.46,1.5381]
[1738314480594,13.41184853,235.5,235.46,1.5381]
[1738314480800,13.41184853,235.48,235.41,8.1106]
[1738314481580,13.41184853,235.46,235.41,8.1106]
[1738314482507,13.41184853,235.46,235.41,0.063]
[1738314482796,6.69677078,235.45,235.41,0.063]
[1738314483695,13.41184853,235.43,235.41,0.063]
[1738314484162,13.41184853,235.39,235.33,0.03]
[1738314485484,0.4248,235.38,235.33,0.03]
[1738314489580,0.4248,235.36,235.33,0.03]
[1738314490873,20.0,235.38,235.33,0.03]
[1738314492413,80.6,235.37,235.33,0.03]
[1738314492598,0.4248,235.36,235.33,0.03]
[1738314498525,0.4249,235.34,235.33,0.03]
[1738314503924,94.43674853,235.34,235.33,0.03]
[1738314504128,94.43674853,235.34,235.32,0.03]
[1738314504304,101.13351931,235.34,235.32,0.03]
[1738314504635,18.23763549,235.33,235.31,0.03]
[1738314505335,33.41184853,235.3,235.29,0.03]
[1738314506931,33.83674853,235.3,235.29,0.03]
[1738314507227,20.0,235.27,235.23,7.831]
[1738314507419,20.0,235.27,235.23,0.03]
[1738314507811,33.41184853,235.27,235.23,0.03]
[1738314508910,33.83684853,235.27,235.23,0.03]
[1738314510317,20.425,235.27,235.23,0.03]
[1738314510818,33.83684853,235.27,235.23,0.03]
[1738314511511,13.41184853,235.24,235.23,0.03]
[1738314511845,18.78154777,235.24,235.23,0.03]
[1738314513342,5.79469924,235.24,235.23,0.03]
[1738314513519,0.425,235.24,235.23,0.03]
[1738314514520,20.0,235.24,235.23,0.03]
[1738314516540,33.83684853,235.24,235.23,0.03]
[1738314519152,37.87931592,235.24,235.23,0.03]
[1738314520429,13.41184853,235.22,235.18,0.063]
[1738314520750,80.6,235.21,235.18,0.063]
[1738314522762,0.4251,235.2,235.18,0.063]
[1738314532643,0.4251,235.22,235.18,0.063]
[1738314534561,0.4251,235.23,235.18,0.063]
[1738314534957,0.03,235.26,235.19,7.8156]
[1738314537383,20.0,235.25,235.19,7.8156]
[1738314537678,20.0,235.24,235.19,7.8156]
[1738314538344,0.425,235.25,235.19,7.8156]
[1738314543467,0.03,235.26,235.19,7.8156]
[1738314552560,1.5176,235.26,235.19,7.8156]
[1738314552762,94.01184853,235.25,235.19,1.548]
[1738314552963,94.01184853,235.25,235.18,0.063]
[1738314554261,81.025,235.24,235.18,0.063]
[1738314554481,82.0877,235.24,235.18,0.063]
[1738314556607,81.025,235.24,235.18,0.063]
[1738314560916,81.055,235.24,235.18,0.063]
[1738314563829,0.4251,235.22,235.18,0.063]
[1738314569842,0.03,235.24,235.18,0.063]
[1738314570204,0.03,235.24,235.18,8.38024577]
[1738314572316,0.03,235.24,235.19,1.5101]
[1738314572518,0.03,235.24,235.2,8.31724577]
[1738314572723,0.03,235.24,235.19,16.38014577]
[1738314573031,0.03,235.24,235.19,8.0629]
[1738314576418,0.03,235.24,235.19,12.3147]
[1738314582245,0.03,235.24,235.19,8.0629]
[1738314586259,0.03,235.24,235.19,1.5101]
[1738314595362,0.03,235.24,235.19,1.5731]
[1738314601170,0.03,235.24,235.19,0.063]
[1738314602954,80.6,235.23,235.19,0.063]
[1738314603352,0.4251,235.22,235.19,0.063]
[1738314608398,33.41184853,235.2,235.19,0.063]
[1738314609196,13.41184853,235.19,235.18,0.063]
[1738314610494,13.83694853,235.19,235.18,0.063]
[1738314611674,13.83694853,235.19,235.17,0.03]
[1738314611874,14.81093802,235.19,235.17,0.03]
[1738314612074,20.0,235.15,235.09,0.03]
[1738314612269,13.41184853,235.14,235.09,0.03]
[1738314612572,0.4252,235.13,235.09,0.03]
[1738314626396,0.4253,235.11,235.09,0.03]
[1738314640919,0.4253,235.11,235.07,0.1583]
[1738314641596,0.4253,235.11,235.09,0.063]
[1738314650099,0.4252,235.14,235.09,0.063]
[1738314654828,20.0,235.13,235.09,0.063]
[1738314656010,81.0253,235.12,235.09,0.063]
[1738314659236,1.0631,235.14,235.09,0.063]
[1738314659237,0.4253,235.1,235.09,0.063]
[1738314659837,20.0,235.08,235.01,7.1897]
[1738314661542,0.4254,235.07,235.01,7.1897]
[1738314664623,0.4254,235.07,235.01,7.2527]
[1738314664817,81.6633,235.11,235.01,15.56994577]
[1738314664818,0.4253,235.09,235.01,15.56994577]
[1738314665017,0.4253,235.09,235.01,7.2527]
[1738314669546,0.4253,235.09,235.02,8.31724577]
[1738314670059,0.4253,235.09,235.03,8.31724577]
[1738314670222,0.4253,235.09,235.01,19.82504577]
[1738314670818,20.0,235.13,235.01,102.12504577]
[1738314671955,0.4253,235.12,235.01,102.12504577]
[1738314676133,0.4253,235.12,235.03,8.31724577]
[1738314677854,1.4883,235.15,235.03,8.31724577]
[1738314678057,0.03,235.12,235.02,8.31724577]
[1738314679758,0.03,235.12,235.02,90.61724577]
[1738314682157,0.4553,235.12,235.02,82.3]
[1738314684564,20.0,235.08,235.01,7.2527]
[1738314684770,80.6,235.09,235.01,0.063]
[1738314686554,0.4253,235.08,235.01,0.063]
[1738314687836,0.4254,235.06,235.01,0.063]
[1738314689772,1.4889,235.06,235.01,0.063]
[1738314690571,0.4254,235.06,235.01,0.063]
[1738314691768,13.41184853,235.05,235.01,0.063]
[1738314692469,0.4254,235.04,235.01,0.063]
[1738314703390,0.4254,235.06,235.01,0.063]
[1738314705380,80.6,235.07,235.01,0.063]
[1738314705562,0.4253,235.08,235.01,0.063]
[1738314706281,0.4253,235.1,235.01,4.3179]
[1738314706475,0.4553,235.12,235.02,8.31724577]
[1738314706679,0.4553,235.12,235.03,8.31724577]
[1738314707583,0.03,235.12,235.03,8.31724577]
[1738314707974,0.03,235.12,235.02,14.11024577]
[1738314708288,0.03,235.12,235.02,5.793]
[1738314708590,0.03,235.12,235.02,1.5382]
[1738314709282,0.03,235.12,235.01,0.063]
[1738314709283,13.41184853,235.07,235.01,0.063]
[1738314709779,0.4254,235.06,235.01,0.063]
[1738314716286,20.4253,235.08,235.01,0.063]
[1738314716591,0.4253,235.08,235.01,0.063]
[1738314720485,80.6,235.09,235.01,12.63524577]
[1738314722083,0.03,235.17,235.11,7.9806]
[1738314722280,0.03,235.17,235.11,16.29784577]
[1738314722600,0.03,235.17,235.11,7.9806]
[1738314733297,0.03,235.17,235.11,16.29784577]
[1738314738104,80.5851,235.2,235.11,20.55094577]
[1738314738421,80.5851,235.2,235.15,8.31724577]
[1738314739200,80.5851,235.2,235.12,8.31724577]
[1738314740299,13.41184853,235.19,235.09,90.61724577]
[1738314740524,13.41184853,235.19,235.09,82.3]
[1738314741509,13.41184853,235.19,235.09,90.61724577]
[1738314741703,0.4252,235.18,235.09,90.61724577]
[1738314742301,0.4252,235.18,235.08,8.31724577]
[1738314743812,0.4252,235.18,235.09,8.31724577]
[1738314744017,0.4252,235.18,235.1,8.31724577]
[1738314746723,20.0,235.14,235.09,0.063]
[1738314747015,20.0,235.16,235.09,0.063]
[1738314747016,13.41184853,235.12,235.09,0.063]
[1738314748792,13.41184853,235.1,235.09,0.063]
[1738314753824,0.4253,235.11,235.09,0.063]
[1738314754005,80.5853,235.13,235.09,0.063]
[1738314754207,0.4253,235.13,235.09,0.063]
[1738314754412,80.16,235.16,235.1,8.31724577]
[1738314754912,80.16,235.16,235.09,0.063]
[1738314754913,80.5852,235.16,235.09,0.063]
[1738314755300,13.41184853,235.15,235.09,0.063]
[1738314757029,0.4252,235.14,235.09,0.063]
[1738314758921,13.41184853,235.13,235.09,0.063]
[1738314760142,13.41184853,235.11,235.09,0.063]
[1738314762941,0.4253,235.1,235.09,0.063]
[1738314764050,80.16,235.12,235.09,0.063]
[1738314765922,0.4252,235.13,235.09,0.063]
[1738314766126,13.83704853,235.15,235.09,0.063]
[1738314772048,0.4252,235.15,235.09,0.063]
[1738314789251,0.4251,235.19,235.09,8.38024577]
[1738314791340,0.4251,235.19,235.09,0.063]
[1738314791541,1.488,235.19,235.09,0.063]
[1738314795073,1.488,235.19,235.1,1.5102]
[1738314795267,0.4251,235.19,235.1,5.7637]
[1738314800293,0.4251,235.19,235.1,1.5102]
[1738314802290,0.4251,235.19,235.11,8.31724577]
[1738314803499,0.4251,235.19,235.11,12.57044577]
[1738314804298,0.4251,235.19,235.11,4.2532]
[1738314812008,0.4251,235.19,235.1,1.5102]
[1738314814294,0.4251,235.19,235.1,5.7635]
[1738314815900,0.4251,235.19,235.1,1.5732]
[1738314816103,13.41184853,235.18,235.1,1.5732]
[1738314816573,93.57184853,235.18,235.1,1.5732]
[1738314818391,0.4252,235.17,235.1,1.5732]
[1738314822489,80.5852,235.17,235.1,1.5732]
[1738314825603,80.16,235.17,235.1,1.5732]
[1738314827111,80.5852,235.17,235.1,1.5732]
[1738314830114,80.5852,235.17,235.1,5.8266]
[1738314830301,80.16,235.17,235.1,5.8266]
[1738314832285,80.16,235.17,235.12,8.31724577]
[1738314833084,80.16,235.17,235.1,14.14384577]
[1738314834395,0.4251,235.19,235.1,14.14384577]
[1738314835214,0.03,235.2,235.1,14.14384577]
[1738314841705,0.03,235.2,235.14,6.0252]
[1738314844027,100.16,235.19,235.1,0.063]
[1738314844198,20.2365734,235.18,235.1,0.063]
[1738314844399,13.41184853,235.14,235.1,0.063]
[1738314844611,93.57184853,235.14,235.1,0.063]
[1738314846027,13.41184853,235.12,235.1,0.063]
[1738314846616,13.41184853,235.12,235.01,0.063]
[1738314846617,20.0,235.08,235.01,0.063]
[1738314846932,13.41184853,235.03,234.97,6.59737192]
[1738314847138,13.41184853,235.06,234.97,6.59737192]
[1738314847642,13.41184853,235.06,234.95,6.6766]
[1738314848008,13.41184853,235.04,234.95,6.6766]
[1738314848216,33.41184853,235.04,234.95,6.6766]
[1738314850041,0.4254,235.03,234.95,6.6766]
[1738314852217,80.5854,235.03,234.95,6.6766]
[1738314852546,80.5854,235.03,234.95,0.063]
[1738314852547,20.0,234.99,234.95,0.063]
[1738314852736,13.41184853,234.98,234.95,0.063]
[1738314853745,0.4255,234.97,234.95,0.063]
[1738314854746,1.04765083,235.01,234.95,0.063]
[1738314854747,13.41184853,235.0,234.95,0.063]
[1738314855044,20.4255,234.99,234.95,0.063]
[1738314857743,13.41184853,234.98,234.95,0.063]
[1738314857956,0.4255,234.97,234.95,0.063]
[1738314863148,93.57184853,234.96,234.95,0.063]
[1738314863720,93.57184853,234.96,234.89,6.6068]
[1738314865338,13.41184853,234.94,234.86,0.063]
[1738314865524,13.41184853,234.92,234.86,0.063]
[1738314866545,80.16,234.93,234.86,0.063]
[1738314867428,0.4256,234.92,234.86,0.063]
[1738314867748,13.41184853,234.91,234.86,0.063]
[1738314868045,80.16,234.9,234.86,0.063]
[1738314869035,13.41184853,234.89,234.86,0.063]
[1738314869862,0.4257,234.88,234.86,0.063]
[1738314872959,80.5857,234.88,234.86,0.063]
[1738314873643,80.16,234.88,234.86,0.063]
[1738314874954,80.5857,234.88,234.86,0.063]
[1738314880659,13.41184853,234.87,234.86,0.063]
[1738314881164,13.41184853,234.87,234.75,1.5441]
[1738314881459,80.6,234.86,234.75,1.5441]
[1738314882161,13.41184853,234.84,234.75,1.5441]
[1738314882457,33.41184853,234.8,234.71,0.063]
[1738314883846,13.41184853,234.78,234.71,0.063]
[1738314884442,13.41184853,234.74,234.71,0.063]
[1738314884652,13.41184853,234.76,234.71,0.063]
[1738314885264,20.0,234.72,234.71,0.063]
[1738314886244,33.41184853,234.72,234.71,0.063]
[1738314886563,33.83784853,234.72,234.71,0.063]
[1738314886863,32.83784853,234.72,234.71,0.063]
[1738314887066,31.83784853,234.72,234.71,0.063]
[1738314887772,13.41184853,234.71,234.59,1.5906]
[1738314888068,13.41184853,234.69,234.56,6.221]
[1738314888869,13.41184853,234.67,234.56,6.221]
[1738314889060,13.41184853,234.63,234.56,6.221]
[1738314889244,13.41184853,234.63,234.56,5.721]
[1738314889759,13.41184853,234.63,234.53,4.2637]
[1738314890062,20.0,234.64,234.45,1.0]
[1738314890063,13.41184853,234.61,234.45,1.0]
[1738314890265,13.41184853,234.61,234.46,8.31724577]
[1738314890559,13.41184853,234.61,234.48,8.31724577]
[1738314890766,13.41184853,234.61,234.49,28.31724577]
[1738314891264,13.41184853,234.61,234.5,4.2643]
[1738314891265,13.83804853,234.61,234.5,4.2643]
[1738314891848,13.41184853,234.66,234.51,28.31724577]
[1738314892251,13.41184853,234.62,234.52,6.5827]
[1738314893261,13.83804853,234.62,234.52,10.8466]
[1738314893576,33.41184853,234.64,234.52,10.8466]